bitfinex-derivatives/quotes_SOLF0:USTF0_20250320
["timestamp","ask_amount","ask_price","bid_price","bid_amount"]
[1742490027727,28.66964905,126.99,126.96,12.77583443]
[1742490028130,28.66964905,126.99,126.96,20.65563443]
[1742490028528,28.66964905,126.99,126.96,12.77583443]
[1742490028729,36.54804905,126.99,126.96,20.65573443]
[1742490029731,36.54804905,126.99,126.96,12.77583443]
[1742490030438,36.54804905,126.99,126.96,20.65583443]
[1742490031639,36.54804905,126.99,126.96,12.77583443]
[1742490032342,36.54804905,126.99,126.97,12.72238671]
[1742490032941,28.66964905,126.99,126.96,12.77583443]
[1742490033437,36.54834905,126.99,126.96,20.65573443]
[1742490033742,28.66964905,126.99,126.96,20.65573443]
[1742490034044,36.54834905,126.99,126.96,20.65573443]
[1742490034249,28.66964905,126.99,126.97,7.8795]
[1742490034748,36.54824905,126.99,126.96,20.65573443]
[1742490035153,28.66964905,126.99,126.98,12.72238671]
[1742490035337,0.04964905,126.99,126.98,12.72238671]
[1742490035538,0.04964905,126.99,126.97,12.72238671]
[1742490036937,0.04964905,126.99,126.97,20.60178671]
[1742490037134,0.04964905,126.99,126.97,12.72238671]
[1742490037442,0.04964905,126.99,126.97,7.8793]
[1742490038245,7.92804905,126.99,126.96,7.93334772]
[1742490039045,0.04964905,126.99,126.96,0.05344772]
[1742490039532,7.92824905,126.99,126.96,7.93314772]
[1742490040248,7.92824905,126.99,126.97,7.8796]
[1742490040742,7.92824905,126.99,126.96,0.05344772]
[1742490040945,7.8791,126.98,126.96,0.05344772]
[1742490042249,0.04964905,126.99,126.97,12.72238671]
[1742490042451,0.04964905,126.99,126.98,12.72238671]
[1742490042654,28.52,127.01,126.99,7.8779]
[1742490042842,28.52,127.01,126.99,20.60028671]
[1742490043547,28.52,127.02,126.98,23.23658671]
[1742490043744,41.24238671,127.02,126.99,0.05490732]
[1742490043945,36.3776,127.01,126.99,0.05490732]
[1742490045250,36.3776,127.01,126.99,7.93320732]
[1742490045945,7.8777,127.0,126.99,0.05490732]
[1742490046143,12.72238671,127.02,126.99,0.05490732]
[1742490046339,28.5,127.01,126.99,0.05490732]
[1742490046751,36.3775,127.01,126.99,0.05490732]
[1742490048047,28.5,127.01,126.99,0.05490732]
[1742490048251,7.8777,127.0,126.99,0.05490732]
[1742490049251,36.3775,127.01,126.99,0.05490732]
[1742490049441,28.5,127.01,126.99,0.05490732]
[1742490049641,12.72238671,127.06,127.0,12.72238671]
[1742490049948,36.3749,127.05,127.03,7.8757]
[1742490050251,28.5,127.05,127.03,12.72238671]
[1742490050651,36.3749,127.05,127.03,12.72238671]
[1742490050846,28.5,127.05,127.02,0.05896014]
[1742490051149,12.72238671,127.04,127.02,0.05896014]
[1742490051549,7.8759,127.03,127.02,0.05896014]
[1742490052147,20.59798671,127.04,127.02,0.05896014]
[1742490052347,41.22238671,127.05,127.02,0.05896014]
[1742490052547,12.72238671,127.05,127.02,0.05896014]
[1742490052748,28.5,127.04,127.02,0.05896014]
[1742490053150,7.8756,127.04,127.02,0.05896014]
[1742490053448,41.22238671,127.05,127.02,0.05896014]
[1742490053648,12.72238671,127.04,127.02,0.05896014]
[1742490053856,41.22238671,127.03,127.02,0.05896014]
[1742490054051,36.3759,127.03,127.02,0.05896014]
[1742490054852,28.5,127.03,127.02,0.05896014]
[1742490055154,28.5,127.05,127.02,20.65784685]
[1742490055548,7.8756,127.04,127.02,12.78134685]
[1742490055756,28.5,127.05,127.02,12.78134685]
[1742490055950,28.5,127.05,127.03,15.39088671]
[1742490056147,7.8743,127.06,127.03,23.26648671]
[1742490056353,36.3743,127.06,127.03,23.26648671]
[1742490057049,28.5,127.08,127.05,12.72238671]
[1742490057251,28.5,127.08,127.06,12.72238671]
[1742490057451,28.5,127.08,127.05,20.65299044]
[1742490058455,7.8737,127.07,127.05,20.65299044]
[1742490058959,7.8737,127.07,127.05,12.77869044]
[1742490059359,36.3731,127.08,127.05,12.77869044]
[1742490059548,28.5,127.08,127.05,12.77869044]
[1742490059962,7.8737,127.07,127.05,12.77869044]
[1742490060159,7.8737,127.07,127.05,0.05630373]
[1742490060360,7.874,127.06,127.05,0.05630373]
[1742490060757,20.59638671,127.06,127.05,0.05630373]
[1742490061658,12.72238671,127.06,126.99,2.5959]
[1742490061861,12.72238671,127.03,126.99,2.5959]
[1742490062062,28.5,127.02,126.99,2.5959]
[1742490062364,36.3768,127.02,126.99,2.5959]
[1742490062763,41.22238671,127.02,126.98,5.284]
[1742490063065,28.54994892,127.02,127.0,7.8777]
[1742490063365,28.54994892,127.02,127.01,12.72238671]
[1742490063562,28.5,127.06,127.01,12.72238671]
[1742490063767,28.5,127.08,127.05,12.72238671]
[1742490064467,28.5,127.08,127.0,28.5]
[1742490064468,7.8737,127.07,127.04,12.72238671]
[1742490064667,28.5,127.08,127.05,7.8746]
[1742490064868,28.5,127.08,127.04,12.78253959]
[1742490065174,28.5,127.08,127.04,0.06015288]
[1742490065661,48.384435,127.08,127.04,0.06015288]
[1742490066266,7.8746,127.05,127.04,0.06015288]
[1742490067668,7.8744,127.06,127.04,0.06015288]
[1742490068065,48.384435,127.08,127.04,0.06015288]
[1742490068265,7.8746,127.05,127.04,0.06015288]
[1742490069458,7.8743,127.06,127.04,0.06015288]
[1742490069657,28.5,127.08,127.04,0.06015288]
[1742490070168,36.3729,127.08,127.04,0.06015288]
[1742490070767,7.8735,127.07,127.05,7.8745]
[1742490071765,7.874,127.06,127.04,7.93525288]
[1742490071965,28.5,127.08,127.04,0.06015288]
[1742490072269,7.8743,127.06,127.04,7.93515288]
[1742490072772,36.3729,127.08,127.05,7.8741]
[1742490072972,28.5,127.08,127.05,7.8741]
[1742490073167,28.5,127.08,127.04,0.06015288]
[1742490073362,7.8738,127.07,127.04,7.93495288]
[1742490073567,7.8738,127.07,127.04,0.06015288]
[1742490074071,28.5,127.08,127.04,0.06015288]
[1742490074263,46.47383352,127.13,127.04,22.44158788]
[1742490074576,7.8719,127.1,127.04,22.381435]
[1742490074771,28.5,127.12,127.07,0.05515804]
[1742490075372,7.8725,127.09,127.07,0.05515804]
[1742490075874,7.8725,127.09,127.07,7.92855804]
[1742490076074,7.8725,127.09,127.07,0.05515804]
[1742490076275,28.5,127.1,127.07,0.05515804]
[1742490076573,28.5,127.11,127.07,0.05515804]
[1742490076967,36.3713,127.11,127.08,7.8725]
[1742490077567,28.5,127.11,127.07,0.05515804]
[1742490078069,7.8717,127.1,127.07,0.05515804]
[1742490078270,28.5,127.11,127.07,0.05515804]
[1742490079177,36.3712,127.11,127.07,7.92855804]
[1742490079678,7.8719,127.1,127.07,0.05515804]
[1742490080574,7.8723,127.09,127.07,0.05515804]
[1742490080774,28.5,127.11,127.07,0.05515804]
[1742490080973,36.3712,127.11,127.07,7.92815804]
[1742490081174,28.5,127.11,127.07,0.05515804]
[1742490082579,7.8719,127.1,127.07,7.92845804]
[1742490082781,28.5,127.11,127.07,0.05515804]
[1742490082968,279.824435,127.14,127.07,0.05515804]
[1742490083281,28.48,127.13,127.07,0.05515804]
[1742490083785,7.8713,127.11,127.08,7.8727]
[1742490084072,279.824435,127.14,127.07,0.05515804]
[1742490084273,28.48,127.13,127.07,0.05515804]
[1742490084474,19.884435,127.14,127.07,28.53515804]
[1742490084783,28.48,127.13,127.08,2.6991]
[1742490085282,28.48,127.13,127.09,0.05544336]
[1742490085483,19.884435,127.12,127.09,0.05544336]
[1742490085780,7.8715,127.1,127.09,0.05544336]
[1742490085983,36.3515,127.1,127.09,0.05544336]
[1742490086680,7.8738,127.07,127.04,2.6991]
[1742490087382,19.884435,127.06,126.98,48.364435]
[1742490087588,19.884435,127.06,126.98,53.603235]
[1742490087885,0.05701325,127.05,127.02,0.05285791]
[1742490088575,28.48,127.04,127.02,0.05285791]
[1742490088773,48.364435,127.04,127.02,0.05285791]
[1742490088975,7.8759,127.03,127.02,0.05285791]
[1742490090278,48.364435,127.04,126.98,2.6678]
[1742490091079,19.884435,127.02,126.98,2.6678]
[1742490091274,28.48,127.01,126.98,2.6678]
[1742490091583,36.41172383,127.01,126.99,0.05390071]
[1742490092183,28.53422383,127.01,126.99,0.05390071]
[1742490093285,7.8777,127.0,126.99,0.05390071]
[1742490093986,28.53422383,127.01,126.99,0.05390071]
[1742490094383,28.53422383,127.01,126.99,7.93200071]
[1742490094879,28.53422383,127.01,127.0,7.8777]
[1742490095201,0.05422383,127.01,126.99,0.05390071]
[1742490095895,132.31043502,127.1,127.0,48.384435]
[1742490096093,28.5,127.08,127.01,2.6655]
[1742490096299,36.3731,127.08,127.04,7.8749]
[1742490096889,7.8735,127.07,127.04,7.8749]
[1742490097088,0.05834995,127.07,127.05,0.053656]
[1742490097293,0.05834995,127.07,127.05,7.928256]
[1742490097493,0.05834995,127.07,127.05,0.053656]
[1742490098096,7.93204995,127.07,127.05,0.053656]
[1742490099198,7.874,127.06,127.05,0.053656]
[1742490099394,0.05834995,127.07,127.05,0.053656]
[1742490099804,7.93214995,127.07,127.05,0.053656]
[1742490100107,0.05834995,127.07,127.05,0.053656]
[1742490100904,7.874,127.06,127.05,0.053656]
[1742490102496,19.884435,127.06,127.01,2.6655]
[1742490102802,19.884435,127.04,126.97,288.4]
[1742490103000,7.877,127.02,126.99,7.8782]
[1742490103702,7.92867401,127.02,126.99,7.93647136]
[1742490104314,0.05167401,127.02,127.0,7.8777]
[1742490104603,0.05167401,127.02,126.99,0.05827136]
[1742490106014,28.5,127.05,127.0,19.884435]
[1742490106312,28.5,127.07,127.01,5.1126]
[1742490106699,7.8743,127.06,127.03,7.8755]
[1742490107218,0.05241762,127.06,127.03,0.05483471]
[1742490107806,0.05241762,127.06,127.04,7.8749]
[1742490109113,7.92651762,127.06,127.03,7.93033471]
[1742490109508,0.05241762,127.06,127.03,0.05483471]
[1742490110514,0.05241762,127.06,127.04,7.8749]
[1742490110910,0.05241762,127.06,127.05,7.8746]
[1742490111210,0.05241762,127.06,127.03,0.05483471]
[1742490112212,0.05241762,127.06,127.04,19.884435]
[1742490112411,0.05241762,127.06,127.05,7.8746]
[1742490112813,62.43862462,127.14,127.04,279.784435]
[1742490113017,7.8706,127.12,127.09,7.8718]
[1742490113207,19.884435,127.12,127.05,28.5]
[1742490113713,19.884435,127.12,127.05,36.3742]
[1742490113907,19.884435,127.12,127.07,0.05276627]
[1742490114417,7.8728,127.08,127.07,0.05276627]
[1742490114805,28.5,127.09,127.07,0.05276627]
[1742490115311,36.3727,127.09,127.07,0.05276627]
[1742490115512,28.5,127.09,127.07,0.05276627]
[1742490115720,62.43862462,127.14,127.07,0.05276627]
[1742490115721,28.48,127.11,127.07,0.05276627]
[1742490116106,7.8719,127.1,127.07,0.05276627]
[1742490116714,7.8722,127.09,127.07,0.05276627]
[1742490117820,7.8728,127.08,127.07,0.05276627]
[1742490118314,7.8725,127.09,127.07,0.05276627]
[1742490118819,7.8728,127.08,127.07,0.05276627]
[1742490122519,28.48,127.11,127.07,0.05276627]
[1742490123224,7.872,127.1,127.07,0.05276627]
[1742490123615,28.48,127.11,127.07,0.05276627]
[1742490124221,7.8728,127.08,127.07,0.05276627]
[1742490126223,7.8724,127.09,127.07,0.05276627]
[1742490126523,28.48,127.11,127.07,7.92606627]
[1742490126821,28.48,127.11,127.07,0.05276627]
[1742490127217,28.48,127.11,127.07,7.92586627]
[1742490127717,19.884435,127.14,127.07,0.05276627]
[1742490127922,28.48,127.13,127.07,19.93720127]
[1742490128124,28.48,127.13,127.07,28.53276627]
[1742490128318,7.872,127.1,127.07,36.40606627]
[1742490128823,7.872,127.1,127.08,7.8727]
[1742490129414,7.8713,127.11,127.09,7.8721]
[1742490129618,28.48,127.12,127.07,31.07756627]
[1742490129816,7.8712,127.11,127.07,31.07756627]
[1742490130016,48.364435,127.12,127.07,0.05276627]
[1742490130416,7.8725,127.09,127.07,0.05276627]
[1742490131620,7.8728,127.08,127.07,0.05276627]
[1742490132724,19.884435,127.08,126.95,1.3695665]
[1742490133022,19.884435,127.06,126.98,2.6655]
[1742490133228,7.8756,127.04,127.0,7.8774]
[1742490133417,28.48,127.05,126.98,22.549935]
[1742490133914,0.05796812,127.03,127.0,0.05286696]
[1742490134625,0.05796812,127.03,127.0,19.93730196]
[1742490134826,28.48,127.07,127.01,2.4783]
[1742490135018,28.48,127.07,127.05,7.8746]
[1742490135223,28.48,127.07,127.02,50.920235]
[1742490135531,28.48,127.07,127.03,2.6655]
[1742490136028,7.8746,127.05,127.04,0.05863246]
[1742490140625,7.8766,127.02,126.98,2.5365]
[1742490140930,28.48,127.02,126.98,2.5365]
[1742490141324,28.48,127.02,127.01,7.8771]
[1742490141631,28.48,127.02,126.98,2.5365]
[1742490141933,28.48,127.02,127.0,7.9335261]
[1742490142128,28.48,127.02,127.0,0.0561261]
[1742490142333,0.04989759,127.03,127.0,0.0561261]
[1742490142833,0.04989759,127.03,127.01,7.8768]
[1742490143733,7.92589759,127.03,127.01,7.8768]
[1742490143934,7.92589759,127.03,127.0,7.9335261]
[1742490144129,0.04989759,127.03,127.0,7.9335261]
[1742490144332,0.04989759,127.03,127.0,0.0561261]
[1742490144930,7.8771,127.01,127.0,0.0561261]
[1742490146235,7.8767,127.02,127.0,0.0561261]
[1742490147134,7.92609759,127.03,127.0,0.0561261]
[1742490147338,0.04989759,127.03,127.0,0.0561261]
[1742490147637,0.04989759,127.03,127.01,7.8767]
[1742490148227,0.04989759,127.03,127.0,0.0561261]
[1742490148432,0.04989759,127.03,127.02,7.8765]
[1742490149540,7.92579759,127.03,127.01,7.8768]
[1742490149839,0.04989759,127.03,127.01,7.8768]
[1742490150031,0.04989759,127.03,127.02,7.8765]
[1742490152333,28.48,127.06,127.05,7.8742]
[1742490152732,28.48,127.06,127.0,60.31725599]
[1742490152938,28.48,127.07,127.0,60.31725599]
[1742490153337,28.48,127.07,127.04,7.8749]
[1742490153641,0.0205871,127.05,127.04,7.8749]
[1742490158044,0.0205871,127.05,127.03,10.5049]
[1742490158342,0.0205871,127.05,127.03,7.8757]
[1742490158642,7.8952871,127.05,127.03,7.8757]
[1742490159645,7.8754,127.04,127.02,7.92651415]
[1742490159843,0.0205871,127.05,127.02,7.92651415]
[1742490160143,0.0205871,127.05,127.02,0.05021415]
[1742490160443,7.8954871,127.05,127.02,0.05021415]
[1742490160640,0.0205871,127.05,127.02,0.05021415]
[1742490162642,7.8954871,127.05,127.02,0.05021415]
[1742490163047,7.8954871,127.05,127.02,7.92651415]
[1742490163343,7.8753,127.04,127.02,7.92651415]
[1742490163644,0.0205871,127.05,127.02,0.05021415]
[1742490163846,19.91520284,127.05,127.02,0.05021415]
[1742490164547,7.8756,127.04,127.02,0.05021415]
[1742490164747,28.48,127.03,127.02,0.05021415]
[1742490165139,36.3559,127.03,127.02,0.05021415]
[1742490165539,28.48,127.03,127.02,0.05021415]
[1742490166746,36.3559,127.03,127.02,0.05021415]
[1742490167043,0.0205871,127.05,127.02,0.05021415]
[1742490167940,28.48,127.04,127.02,0.05021415]
[1742490169354,36.3553,127.04,127.02,0.05021415]
[1742490169949,28.48,127.04,127.02,7.92671415]
[1742490170844,28.48,127.04,127.03,7.8759]
[1742490173151,28.48,127.04,127.02,7.92641415]
[1742490173352,28.48,127.04,127.02,0.05021415]
[1742490173544,48.37461574,127.04,127.02,0.05021415]
[1742490174253,7.8759,127.03,127.02,0.05021415]
[1742490174552,48.37461574,127.04,127.02,0.05021415]
[1742490174752,56.25011574,127.04,127.02,0.05021415]
[1742490174951,48.37461574,127.04,127.02,0.05021415]
[1742490175549,0.0205871,127.05,127.02,0.05021415]
[1742490176053,7.8954871,127.05,127.02,0.05021415]
[1742490176946,7.8754,127.04,127.02,0.05021415]
[1742490177855,7.8954871,127.05,127.02,0.05021415]
[1742490178154,0.0205871,127.05,127.02,0.05021415]
[1742490178356,7.8759,127.03,127.02,0.05021415]
[1742490182658,27.77051574,127.03,127.02,1.415e-05]
[1742490182854,27.77051574,127.03,126.93,7.3647]
[1742490182855,19.89461574,127.03,126.93,7.3647]
[1742490183050,19.89461574,127.01,126.93,7.3647]
[1742490183255,19.89461574,126.99,126.93,7.3647]
[1742490183949,0.05047528,126.97,126.95,0.05968113]
[1742490184150,28.53047528,126.97,126.95,0.05968113]
[1742490184356,36.41037528,126.97,126.95,0.05968113]
[1742490185157,28.53047528,126.97,126.95,0.05968113]
[1742490186253,28.53047528,126.97,126.96,7.8802]
[1742490186456,28.53047528,126.97,126.95,0.05968113]
[1742490187857,0.05047528,126.97,126.95,0.05968113]
[1742490188163,28.5,127.01,126.95,19.95429687]
[1742490188764,36.3775,127.01,126.98,7.8789]
[1742490189265,36.39782598,127.01,126.99,7.8783]
[1742490189461,0.02032598,127.01,126.98,0.05290739]
[1742490189762,28.5,127.03,126.98,0.05290739]
[1742490189763,39.13087707,127.04,126.99,19.89461574]
[1742490189965,39.13087707,127.04,127.01,7.8767]
[1742490189966,47.00677707,127.04,127.01,7.8767]
[1742490190164,28.5,127.04,126.99,19.89461574]
[1742490190355,28.5,127.04,126.98,5.0166]
[1742490190561,19.89461574,127.03,126.95,19.89461574]
[1742490190760,19.89461574,127.03,127.0,0.0555986]
[1742490190962,19.89461574,127.03,126.97,7.8795]
[1742490191161,19.89461574,127.03,126.93,51.00871574]
[1742490191361,19.89461574,127.03,126.99,0.05499074]
[1742490191661,7.8777,127.0,126.99,0.05499074]
[1742490191863,36.4577,127.0,126.99,0.05499074]
[1742490193067,28.58,127.0,126.99,0.05499074]
[1742490194057,37.92011574,127.07,126.99,19.94960648]
[1742490194058,28.58,127.03,126.99,19.94960648]
[1742490194260,28.58,127.03,126.99,19.89461574]
[1742490194458,36.4564,127.03,127.0,7.93282469]
[1742490194864,36.4564,127.03,127.0,0.05542469]
[1742490195166,28.56,127.03,127.01,7.8768]
[1742490195768,28.56,127.03,127.02,7.8765]
[1742490196165,7.8756,127.04,127.02,7.8765]
[1742490196355,36.4356,127.04,127.02,7.8765]
[1742490196556,28.56,127.04,127.02,7.8765]
[1742490196761,28.56,127.04,127.01,7.8768]
[1742490197065,36.4353,127.04,127.0,0.05542469]
[1742490197260,36.4353,127.04,127.01,7.8768]
[1742490197568,7.8759,127.03,127.0,0.05542469]
[1742490197761,28.56,127.04,127.0,7.93292469]
[1742490198164,28.56,127.04,127.0,0.05542469]
[1742490198165,7.8771,127.01,127.0,0.05542469]
[1742490198362,36.4571,127.01,127.0,0.05542469]
[1742490199171,7.8797,126.97,126.95,2.2884]
[1742490199366,28.58,126.97,126.95,10.1691]
[1742490199565,28.58,126.97,126.95,2.2884]
[1742490200261,28.63389412,126.97,126.95,2.34833942]
[1742490200569,28.63389412,126.97,126.95,10.22903942]
[1742490200869,28.63389412,126.97,126.95,2.34833942]
[1742490201071,28.63389412,126.97,126.96,7.8802]
[1742490201265,19.89461574,127.03,126.95,22.24295516]
[1742490201564,28.58,127.02,126.96,2.1659]
[1742490201770,36.4568,127.02,126.99,7.8779]
[1742490202270,28.58,127.02,126.99,7.8779]
[1742490202468,28.58,127.02,126.99,7.93732621]
[1742490202769,36.4567,127.02,126.99,7.93732621]
[1742490202971,28.58,127.02,126.99,7.93732621]
[1742490203269,28.58,127.02,126.99,0.05942621]
[1742490203771,28.58,127.02,127.0,7.8773]
[1742490204064,28.58,127.02,126.99,0.05942621]
[1742490204470,28.58,127.02,127.0,7.8774]
[1742490204771,28.58,127.02,126.99,0.05942621]
[1742490204972,28.58,127.02,127.01,7.8771]
[1742490205969,1.37061835,127.06,126.99,0.05942621]
[1742490206173,28.56,127.06,126.99,19.95404195]
[1742490206363,28.56,127.06,127.0,2.1499]
[1742490206567,36.4343,127.06,127.0,2.1499]
[1742490206768,36.4343,127.06,127.02,0.05594681]
[1742490206971,28.56,127.06,127.02,0.05594681]
[1742490207669,7.8757,127.04,127.02,0.05594681]
[1742490208975,56.33051574,127.03,127.02,0.05594681]
[1742490209164,19.89461574,127.01,126.92,55.24151574]
[1742490209671,19.89461574,127.01,126.94,19.89461574]
[1742490209872,7.8782,127.0,126.94,19.89461574]
[1742490210274,0.05109243,126.98,126.96,7.93708931]
[1742490210474,28.56,127.02,126.96,48.63190505]
[1742490210666,28.56,127.02,126.97,2.2365]
[1742490210977,28.68,127.02,126.98,19.89461574]
[1742490211176,28.7,127.04,127.0,19.89461574]
[1742490211576,36.5743,127.06,127.03,7.8753]
[1742490211782,36.5743,127.06,127.01,0.05486247]
[1742490212479,28.7,127.06,127.02,19.89461574]
[1742490212669,71.2235083,127.07,127.03,2.3377]
[1742490212874,42.5235083,127.07,127.03,4.7162]
[1742490213070,28.2058083,127.07,127.06,19.89461574]
[1742490213269,28.2058083,127.07,127.05,31.79448732]
[1742490213481,28.2058083,127.07,127.06,7.874]
[1742490214576,263.63661824,127.11,127.04,0.05750974]
[1742490214577,36.6111,127.11,127.04,0.05750974]
[1742490214776,10.63087707,127.13,127.07,31.79448732]
[1742490214975,10.63087707,127.13,127.1,7.8714]
[1742490215275,10.63087707,127.13,127.09,31.85176835]
[1742490215474,10.63087707,127.13,127.11,7.8709]
[1742490215682,10.63087707,127.13,127.09,31.85176835]
[1742490216077,3.47557707,127.13,127.09,31.85176835]
[1742490216279,3.47557707,127.13,127.11,31.79448732]
[1742490216586,3.47557707,127.13,127.12,7.8703]
[1742490217378,127.57052492,127.15,127.13,7.8697]
[1742490217583,127.57052492,127.15,127.14,60.55448732]
[1742490217976,28.76,127.2,127.14,60.55448732]
[1742490218177,121.60355495,127.22,127.14,60.55448732]
[1742490218479,113.73915495,127.22,127.17,0.05363985]
[1742490219183,31.79448732,127.21,127.09,291.75448732]
[1742490219573,31.79448732,127.21,127.11,7.8705]
[1742490219782,31.79448732,127.19,127.11,7.8705]
[1742490219978,33.3303,127.18,127.11,7.8705]
[1742490220180,33.3303,127.18,127.09,291.75448732]
[1742490220476,7.8688,127.15,127.13,0.05976651]
[1742490220682,36.6288,127.15,127.13,0.05976651]
[1742490221076,0.05495247,127.16,127.13,0.05976651]
[1742490221673,0.05495247,127.16,127.15,7.8685]
[1742490221873,2.3001,127.23,127.14,60.53448732]
[1742490222075,7.8642,127.22,127.16,31.79448732]
[1742490222288,31.0601,127.23,127.18,7.8663]
[1742490222478,31.0601,127.23,127.16,31.79448732]
[1742490222678,38.9238,127.23,127.19,7.8656]
[1742490223087,38.9238,127.23,127.2,0.05577194]
[1742490223287,31.0601,127.23,127.2,7.92067194]
[1742490223483,7.8632,127.24,127.2,0.05577194]
[1742490223682,31.79448732,127.27,127.2,0.05577194]
[1742490223887,7.8637,127.23,127.2,0.05577194]
[1742490224287,28.74,127.24,127.2,0.05577194]
[1742490225283,7.8637,127.23,127.2,0.05577194]
[1742490225489,2.0,127.26,127.2,0.05577194]
[1742490225787,2.0,127.26,127.2,60.57025926]
[1742490226283,2.0,127.26,127.22,7.8636]
[1742490226493,2.0,127.26,127.2,60.51448732]
[1742490226684,36.5813,127.27,127.2,60.51448732]
[1742490226685,28.72,127.27,127.23,0.05839492]
[1742490226884,33.3507,127.29,127.24,7.8625]
[1742490227085,7.8605,127.28,127.23,28.75839492]
[1742490227292,4.6507,127.29,127.23,28.75839492]
[1742490227682,36.44518732,127.29,127.23,0.05839492]
[1742490227889,7.8626,127.25,127.23,0.05839492]
[1742490228789,28.96,127.26,127.23,0.05839492]
[1742490228994,28.96,127.26,127.21,259.7]
[1742490229190,28.96,127.26,127.18,28.94]
[1742490229384,28.96,127.26,127.18,60.73448732]
[1742490229588,28.96,127.26,127.2,31.79448732]
[1742490229887,7.8626,127.25,127.2,31.79448732]
[1742490230084,28.96,127.28,127.21,28.96]
[1742490230392,0.05142711,127.24,127.23,7.863]
[1742490230692,33.6107,127.29,127.22,31.79448732]
[1742490230990,0.05663086,127.25,127.24,7.8623]
[1742490231389,7.8608,127.28,127.24,7.8623]
[1742490231586,33.6107,127.29,127.23,0.05344525]
[1742490231587,0.05284895,127.26,127.23,0.05344525]
[1742490231896,29.03284895,127.26,127.23,0.05344525]
[1742490232097,7.8629,127.24,127.23,0.05344525]
[1742490232488,29.03284895,127.26,127.23,0.05344525]
[1742490232687,7.8627,127.25,127.23,0.05344525]
[1742490233797,29.03284895,127.26,127.23,0.05344525]
[1742490234394,29.03284895,127.26,127.23,7.91684525]
[1742490235100,36.89454895,127.26,127.23,0.05344525]
[1742490235697,36.89454895,127.26,127.23,7.91684525]
[1742490236699,36.89454895,127.26,127.23,0.05344525]
[1742490236700,29.03284895,127.26,127.23,0.05344525]
[1742490237200,36.89464895,127.26,127.23,7.91654525]
[1742490238700,7.8624,127.25,127.23,0.05344525]
[1742490239398,36.89474895,127.26,127.23,0.05344525]
[1742490239598,29.03284895,127.26,127.23,0.05344525]
[1742490239903,36.89454895,127.26,127.23,0.05344525]
[1742490240396,36.89454895,127.26,127.23,7.91644525]
[1742490240591,29.03284895,127.26,127.23,0.05344525]
[1742490240991,0.05284895,127.26,127.23,0.05344525]
[1742490241400,0.05284895,127.26,127.25,7.8623]
[1742490241600,0.05284895,127.26,127.23,0.05344525]
[1742490242006,7.91484895,127.26,127.23,7.91674525]
[1742490242205,0.05284895,127.26,127.23,7.91674525]
[1742490242598,7.91494895,127.26,127.23,7.91674525]
[1742490242999,0.05284895,127.26,127.23,0.05344525]
[1742490243706,29.12,127.25,127.18,60.91448732]
[1742490244100,36.9825,127.25,127.18,60.91448732]
[1742490244299,29.12,127.25,127.18,60.91448732]
[1742490244505,29.12,127.25,127.23,7.8631]
[1742490244695,29.12,127.25,127.2,0.05189714]
[1742490244906,29.1740999,127.25,127.18,60.91448732]
[1742490245109,37.0366999,127.25,127.21,0.05790161]
[1742490245603,29.1740999,127.25,127.21,0.05790161]
[1742490246001,29.1740999,127.25,127.24,7.8629]
[1742490246203,0.0540999,127.25,127.24,7.8629]
[1742490246403,0.0540999,127.25,127.21,29.19790161]
[1742490246606,0.0540999,127.25,127.21,7.92230161]
[1742490246807,29.14,127.24,127.21,0.05790161]
[1742490247311,2.1658,127.23,127.21,0.05790161]
[1742490247710,2.1658,127.23,127.21,7.92230161]
[1742490247912,2.1658,127.23,127.21,0.05790161]
[1742490248113,2.1658,127.23,127.21,7.92230161]
[1742490248413,2.1658,127.23,127.21,0.05790161]
[1742490248609,10.0296,127.23,127.21,0.05790161]
[1742490248811,10.0296,127.23,127.21,7.92260161]
[1742490249116,10.0296,127.23,127.21,0.05790161]
[1742490249608,2.1658,127.23,127.21,0.05790161]
[1742490250715,7.8641,127.22,127.21,0.05790161]
[1742490251209,10.0297,127.23,127.21,0.05790161]
[1742490251817,29.1,127.32,127.22,291.29448732]
[1742490252008,4.3238,127.28,127.22,291.29448732]
[1742490252209,4.3238,127.28,127.25,7.8622]
[1742490252410,4.3238,127.28,127.22,259.5]